fUST/lending_fUST_20241024
["ID","MTS","AMOUNT","RATE_DAILY","PERIOD"]
[340758016,1729781444305,-151.903512,0.00022968,7]
[340758017,1729781444315,-151.0,0.00022968,7]
[340758018,1729781444325,-223.039527,0.00022968,7]
[340758019,1729781444335,-151.0,0.00022968,7]
[340758020,1729781444344,-151.0,0.00022968,7]
[340758021,1729781444354,-151.0,0.00022968,7]
[340758022,1729781444364,-215.080066,0.00022968,7]
[340758023,1729781444374,-215.080066,0.00022968,7]
[340758024,1729781444384,-215.080066,0.00022968,7]
[340758025,1729781444393,-215.080066,0.00022968,7]
[340758026,1729781444404,-215.080066,0.00022968,7]
[340758027,1729781444414,-215.080066,0.00022968,7]
[340758028,1729781444425,-2001.104785,0.00022968,7]
[340758029,1729781444435,-311.201937,0.00022968,7]
[340758030,1729781444444,-311.201937,0.00022968,7]
[340758031,1729781444454,-311.201937,0.00022968,7]
[340758032,1729781444465,-2001.104785,0.00022968,7]
[340758033,1729781444475,-2001.104785,0.00022968,7]
[340758034,1729781444485,-2001.104785,0.00022968,7]
[340758035,1729781444495,-311.201937,0.00022968,7]
[340758036,1729781444508,-311.201937,0.00022968,7]
[340758037,1729781444518,-311.201937,0.00022968,7]
[340758038,1729781444527,-151.0,0.00022968,7]
[340758039,1729781444536,-151.0,0.00022968,7]
[340758040,1729781444545,-151.0,0.00022968,7]
[340758041,1729781444554,-151.0,0.00022968,7]
[340758042,1729781444564,-151.0,0.00022968,7]
[340758043,1729781444573,-151.0,0.00022968,7]
[340758044,1729781444582,-151.0,0.00022968,7]
[340758045,1729781444591,-151.0,0.00022968,7]
[340758046,1729781444600,-329.834179,0.00022968,7]
[340758047,1729781444610,-151.0,0.00022968,7]
[340758048,1729781444620,-329.834179,0.00022968,7]
[340758049,1729781444630,-151.0,0.00022968,7]
[340758050,1729781444640,-329.834179,0.00022968,7]
[340758051,1729781444655,-151.0,0.00022968,7]
[340758052,1729781444665,-329.834179,0.00022968,7]
[340758053,1729781444675,-329.834179,0.00022968,7]
[340758054,1729781444685,-329.834179,0.00022968,7]
[340758055,1729781444695,-588.795864,0.00022968,7]
[340758056,1729781444706,-588.795864,0.00022968,7]
[340758057,1729781444717,-588.795864,0.00022968,7]
[340758058,1729781444730,-588.795864,0.00022968,7]
[340758059,1729781444740,-588.795864,0.00022968,7]
[340758060,1729781444753,-588.795864,0.00022968,7]
[340758061,1729781444764,-186.96015,0.00022968,7]
[340758062,1729781444775,-186.96015,0.00022968,7]
[340758063,1729781444786,-186.96015,0.00022968,7]
[340758064,1729781444947,-186.96015,0.00022968,7]
[340758065,1729781444961,-186.96015,0.00022968,7]
[340758066,1729781444971,-186.96015,0.00022968,7]
[340758067,1729781444981,-186.96015,0.00022968,7]
[340758068,1729781444990,-186.96015,0.00022968,7]
[340758069,1729781445003,-186.96015,0.00022968,7]
[340758070,1729781445015,-186.96015,0.00022968,7]
[340758071,1729781445025,-151.0,0.00022968,7]
[340758072,1729781445036,-151.0,0.00022968,7]
[340758073,1729781445045,-151.0,0.00022968,7]
[340758074,1729781445056,-151.0,0.00022968,7]
[340758075,1729781445067,-151.0,0.00022968,7]
[340758076,1729781445077,-151.0,0.00022968,7]
[340758077,1729781445088,-151.0,0.00022968,7]
[340758078,1729781445098,-151.0,0.00022968,7]
[340758079,1729781445108,-222.595572,0.00022968,7]
[340758080,1729781445119,-230.677259,0.00022968,7]
[340758081,1729781445129,-230.677259,0.00022968,7]
[340758082,1729781445138,-230.677259,0.00022968,7]
[340758083,1729781445148,-230.677259,0.00022968,7]
[340758084,1729781445158,-230.677259,0.00022968,7]
[340758085,1729781445168,-230.677259,0.00022968,7]
[340758086,1729781445178,-230.677259,0.00022968,7]
[340758087,1729781445188,-230.677259,0.00022968,7]
[340758088,1729781445198,-230.677259,0.00022968,7]
[340758089,1729781445207,-230.677259,0.00022968,7]
[340758090,1729781445217,-230.677259,0.00022968,7]
[340758091,1729781445228,-230.677259,0.00022968,7]
[340758092,1729781445239,-230.677259,0.00022968,7]
[340758093,1729781445251,-230.677259,0.00022968,7]
[340758094,1729781445262,-1049.883201,0.00022968,7]
[340758095,1729781445274,-1049.883201,0.00022968,7]
[340758096,1729781445285,-1049.883201,0.00022968,7]
[340758097,1729781445295,-1049.883201,0.00022968,7]
[340758098,1729781445306,-1049.883201,0.00022968,7]
[340758099,1729781445316,-1049.883201,0.00022968,7]
[340758100,1729781445327,-1049.883201,0.00022968,7]
[340758101,1729781445337,-1049.883201,0.00022968,7]
[340758102,1729781445347,-1049.883201,0.00022968,7]
[340758103,1729781445357,-1049.883201,0.00022968,7]
[340758104,1729781445367,-1049.883201,0.00022968,7]
[340758105,1729781445377,-1049.883201,0.00022968,7]
[340758106,1729781445388,-1049.883201,0.00022968,7]
[340758107,1729781445398,-1049.883201,0.00022968,7]
[340758108,1729781445409,-2805.517021,0.00022968,7]
[340758109,1729781445419,-2805.517021,0.00022968,7]
[340758110,1729781445430,-2805.517021,0.00022968,7]
[340758111,1729781445441,-2805.517021,0.00022968,7]
[340758112,1729781445450,-151.0,0.00022968,7]
[340758113,1729781445461,-928.45239672,0.00022968,7]
[340758114,1729781445710,-1877.06462428,0.00022968,7]
[340758115,1729781445721,-151.0,0.00022968,7]
[340758116,1729781445734,-2805.517021,0.00022968,7]
[340758117,1729781445745,-2805.517021,0.00022968,7]
[340758118,1729781445757,-151.0,0.00022968,7]
[340758119,1729781445767,-1160.144765,0.00022968,7]
[340758120,1729781445777,-2805.517021,0.00022968,7]
[340758121,1729781445787,-151.0,0.00022968,7]
[340758122,1729781445797,-1160.144765,0.00022968,7]
[340758123,1729781445806,-2805.517021,0.00022968,7]
[340758124,1729781445816,-151.0,0.00022968,7]
[340758125,1729781445825,-1160.144765,0.00022968,7]
[340758126,1729781445834,-2805.517021,0.00022968,7]
[340758127,1729781445844,-1160.144765,0.00022968,7]
[340758128,1729781445853,-151.0,0.00022968,7]
[340758129,1729781445863,-2805.517021,0.00022968,7]
[340758130,1729781445872,-1160.144765,0.00022968,7]
[340758131,1729781445882,-151.0,0.00022968,7]
[340758132,1729781445892,-1160.144765,0.00022968,7]
[340758133,1729781445901,-2805.517021,0.00022968,7]
[340758134,1729781445910,-151.0,0.00022968,7]
[340758135,1729781445920,-1160.144765,0.00022968,7]
[340758136,1729781445930,-289.58077,0.00022968,7]
[340758137,1729781445940,-2805.517021,0.00022968,7]
[340758138,1729781445950,-2805.517021,0.00022968,7]
[340758139,1729781445960,-1141.668748,0.00022968,7]
[340758140,1729781445971,-1141.668748,0.00022968,7]
[340758141,1729781445981,-1160.144765,0.00022968,7]
[340758142,1729781445991,-1160.144765,0.00022968,7]
[340758143,1729781446003,-1160.144765,0.00022968,7]
[340758144,1729781446016,-1160.144765,0.00022968,7]
[340758145,1729781446026,-1141.668748,0.00022968,7]
[340758146,1729781446036,-1160.144765,0.00022968,7]
[340758147,1729781446046,-1141.668748,0.00022968,7]
[340758148,1729781446056,-1160.144765,0.00022968,7]
[340758149,1729781446066,-1141.668748,0.00022968,7]
[340758150,1729781446077,-1160.144765,0.00022968,7]
[340758151,1729781446087,-1141.668748,0.00022968,7]
[340758152,1729781446096,-1141.668748,0.00022968,7]
[340758153,1729781446105,-1141.668748,0.00022968,7]
[340758155,1729781446115,-1141.668748,0.00022968,7]
[340758156,1729781446125,-3302.736929,0.00022968,7]
[340758157,1729781446135,-3302.736929,0.00022968,7]
[340758158,1729781446145,-3302.736929,0.00022968,7]
[340758159,1729781446155,-3302.736929,0.00022968,7]
[340758160,1729781446164,-3302.736929,0.00022968,7]
[340758161,1729781446174,-3302.736929,0.00022968,7]
[340758162,1729781446183,-3302.736929,0.00022968,7]
[340758163,1729781446192,-3302.736929,0.00022968,7]
[340758164,1729781446202,-3302.736929,0.00022968,7]
[340758165,1729781446211,-3302.736929,0.00022968,7]
[340758166,1729781446222,-3302.736929,0.00022968,7]
[340758167,1729781446232,-3302.736929,0.00022968,7]
[340758168,1729781446241,-3302.736929,0.00022968,7]
[340758169,1729781446255,-3302.736929,0.00022968,7]
[340758172,1729781446264,-350.26614,0.00022968,7]
[340758173,1729781446273,-350.26614,0.00022968,7]
[340758175,1729781446283,-350.26614,0.00022968,7]
[340758176,1729781446293,-350.26614,0.00022968,7]
[340758177,1729781446303,-350.26614,0.00022968,7]
[340758180,1729781446312,-350.26614,0.00022968,7]
[340758182,1729781446323,-350.26614,0.00022968,7]
[340758184,1729781446333,-350.26614,0.00022968,7]
[340758185,1729781446344,-350.26614,0.00022968,7]
[340758187,1729781446353,-350.26614,0.00022968,7]
[340758188,1729781446365,-350.26614,0.00022968,7]
[340758189,1729781446375,-350.26614,0.00022968,7]
[340758190,1729781446385,-350.26614,0.00022968,7]
[340758191,1729781446396,-350.26614,0.00022968,7]
[340758193,1729781446405,-151.0,0.00022969,7]
[340758195,1729781446416,-286.658289,0.00022969,7]
[340758196,1729781446426,-1044.459128,0.00022969,7]
[340758197,1729781446436,-1044.459128,0.00022969,7]
[340758198,1729781446446,-1044.459128,0.00022969,7]
[340758199,1729781446456,-1044.459128,0.00022969,7]
[340758200,1729781446466,-151.0,0.00022969,7]
[340758201,1729781446477,-215.080066,0.00022969,7]
[340758202,1729781446489,-215.080066,0.00022969,7]
[340758203,1729781446498,-2001.104785,0.00022969,7]
[340758204,1729781446511,-311.201937,0.00022969,7]
[340758205,1729781446523,-2001.104785,0.00022969,7]
[340758206,1729781446533,-311.201937,0.00022969,7]
[340758207,1729781446543,-151.0,0.00022969,7]
[340758208,1729781446553,-200.909721,0.00022969,7]
[340758209,1729781446563,-329.834179,0.00022969,7]
[340758211,1729781446573,-151.0,0.00022969,7]
[340758212,1729781446583,-329.834179,0.00022969,7]
[340758213,1729781446594,-588.795864,0.00022969,7]
[340758214,1729781446604,-588.795864,0.00022969,7]
[340758215,1729781446614,-186.96015,0.00022969,7]
[340758217,1729781446624,-186.96015,0.00022969,7]
[340758219,1729781446635,-186.96015,0.00022969,7]
[340758220,1729781446645,-186.96015,0.00022969,7]
[340758222,1729781446661,-5817.08713,0.00022969,7]
[340758224,1729781446671,-151.0,0.00022969,7]
[340758226,1729781446682,-151.0,0.00022969,7]
[340758228,1729781446693,-230.677259,0.00022969,7]
[340758229,1729781446703,-230.677263,0.00022969,7]
[340758231,1729781446716,-1049.883201,0.00022969,7]
[340758233,1729781446728,-1049.883208,0.00022969,7]
[340758235,1729781446738,-151.0,0.00022969,7]
[340758236,1729781446747,-2805.517021,0.00022969,7]
[340758237,1729781446760,-1160.144765,0.00022969,7]
[340758238,1729781446769,-2805.51702242,0.00022969,7]
[340758239,1729781446783,-1141.668748,0.00022969,7]
[340758240,1729781446796,-1160.14477,0.00022969,7]
[340758241,1729781446807,-1141.668753,0.00022969,7]
[340758242,1729781446818,-3302.736929,0.00022969,7]
[340758243,1729781446829,-3302.736926,0.00022969,7]
[340758244,1729781446838,-350.26614,0.00022969,7]
[340758245,1729781446850,-350.266135,0.00022969,7]
[340758246,1729781446860,-154.330116,0.00022972,7]
[340758247,1729781446871,-215.080066,0.00022972,7]
[340758248,1729781446882,-215.080066,0.00022972,7]
[340758249,1729781446894,-215.080066,0.00022972,7]
[340758250,1729781446906,-215.080066,0.00022972,7]
[340758251,1729781446915,-2001.104785,0.00022972,7]
[340758252,1729781446926,-2001.104785,0.00022972,7]
[340758253,1729781446935,-311.201937,0.00022972,7]
[340758254,1729781446946,-311.201937,0.00022972,7]
[340758255,1729781446956,-2001.104785,0.00022972,7]
[340758256,1729781446966,-2001.104785,0.00022972,7]
[340758257,1729781446977,-311.201937,0.00022972,7]
[340758258,1729781446989,-311.201937,0.00022972,7]
[340758259,1729781446999,-151.0,0.00022972,7]
[340758260,1729781447009,-151.0,0.00022972,7]
[340758261,1729781447018,-329.834179,0.00022972,7]
[340758262,1729781447029,-151.0,0.00022972,7]
[340758263,1729781447039,-329.834179,0.00022972,7]
[340758264,1729781447049,-151.0,0.00022972,7]
[340758265,1729781447058,-329.834179,0.00022972,7]
[340758266,1729781447068,-329.834179,0.00022972,7]
[340758267,1729781447078,-588.795864,0.00022972,7]
[340758268,1729781447089,-588.795864,0.00022972,7]
[340758269,1729781447100,-588.795864,0.00022972,7]
[340758270,1729781447110,-588.795864,0.00022972,7]
[340758271,1729781447121,-186.96015,0.00022972,7]
[340758272,1729781447131,-186.960145,0.00022972,7]
[340758273,1729781447140,-5817.08713,0.00022972,7]
[340758274,1729781447150,-5817.08713,0.00022972,7]
[340758275,1729781447159,-151.0,0.00022972,7]
[340758276,1729781447168,-565.460286,0.00022972,2]
[340758277,1729781447177,-500.0,0.00022972,2]
[340758278,1729781447187,-1894.38,0.00022972,2]
[340758279,1729781447196,-545.92,0.00022972,2]
[340758280,1729781447206,-500.0,0.00022972,2]
[340758281,1729781447215,-7787.7,0.00022972,2]
[340758282,1729781447224,-526.7,0.00022972,2]
[340758283,1729781447234,-306.85376998,0.00022972,2]
[340758284,1729781447245,-15729.14,0.00022972,2]
[340758285,1729781447257,-500.0,0.00022972,2]
[340758286,1729781447267,-500.0,0.00022972,2]
[340758287,1729781447278,-5790.44,0.00022972,2]
[340758288,1729781447290,-72.96132569,0.00022972,2]
[340758289,1729781448239,-500.0,0.00021917,2]
[340758290,1729781448249,-500.0,0.00022191,2]
[340758291,1729781448261,-514.27037915,0.00022465,2]
[340758292,1729781448270,-500.0,0.00022773,2]
[340758293,1729781448280,-1711.74867431,0.00022972,2]
[340758294,1729781448289,-561.81116462,0.00022972,2]
[340758295,1729781448301,-4105.05883538,0.00022972,2]
[340758296,1729781448310,-2159.88762652,0.00022972,2]
[340758297,1729781448326,-1473.23237348,0.00022972,2]
[340758298,1729781448336,-1243.22,0.00022972,2]
[340758299,1729781448345,-119.83262652,0.00022972,2]
[340758300,1729781448357,-1293.61737348,0.00022972,2]
[340758301,1729781448366,-304.25494667,0.00022972,2]
[340758302,1729781448665,-500.0,0.00021917,2]
[340758303,1729781448675,-38.12114948,0.00022972,2]
[340758304,1729781448685,-500.24726589,0.00022973,2]
[340758305,1729781448694,-500.5109721,0.00022973,2]
[340758306,1729781448705,-502.20398894,0.00022973,2]
[340758307,1729781448714,-500.0,0.00022973,2]
[340758308,1729781448725,-507.57614644,0.00022973,2]
[340758309,1729781448735,-623.08054102,0.00022973,2]
[340758310,1729781448745,-500.0,0.00022973,2]
[340758311,1729781448755,-500.0,0.00022973,2]
[340758312,1729781448764,-500.0,0.00022973,2]
[340758313,1729781448774,-526.45071971,0.00022973,2]
[340758314,1729781448783,-500.0,0.00022973,2]
[340758315,1729781448793,-500.27072026,0.00022973,2]
[340758316,1729781448802,-418.61576247,0.00022973,2]
[340758317,1729781448813,-159.12773752,0.00022973,2]
[340758318,1729781448829,-500.0,0.00022973,2]
[340758319,1729781448848,-500.0,0.00022973,2]
[340758320,1729781448864,-500.0,0.00022973,2]
[340758321,1729781448878,-500.0,0.00022973,2]
[340758322,1729781448892,-500.0,0.00022973,2]
[340758323,1729781448907,-500.0,0.00022973,2]
[340758324,1729781448923,-500.0,0.00022973,2]
[340758325,1729781448940,-500.0,0.00022973,2]
[340758326,1729781448956,-150.86557476,0.00022973,2]
[340758327,1729781448971,-151.0,0.00022976,7]
[340758328,1729781448986,-151.0,0.00022976,7]
[340758329,1729781449003,-1044.459128,0.00022976,7]
[340758330,1729781449018,-1044.459128,0.00022976,7]
[340758331,1729781449029,-1044.459128,0.00022976,7]
[340758332,1729781449043,-1044.459128,0.00022976,7]
[340758333,1729781449060,-1044.459128,0.00022976,7]
[340758334,1729781449075,-1044.459128,0.00022976,7]
[340758335,1729781449089,-215.080066,0.00022976,7]
[340758336,1729781449105,-215.080066,0.00022976,7]
[340758337,1729781449119,-215.080066,0.00022976,7]
[340758338,1729781449131,-215.080058,0.00022976,7]
[340758339,1729781449143,-2001.104785,0.00022976,7]
[340758340,1729781449158,-2001.104785,0.00022976,7]
[340758341,1729781449173,-311.201937,0.00022976,7]
[340758342,1729781449188,-311.201937,0.00022976,7]
[340758343,1729781449200,-2001.104785,0.00022976,7]
[340758344,1729781449215,-2001.104777,0.00022976,7]
[340758345,1729781449228,-311.201937,0.00022976,7]
[340758346,1729781449241,-311.201934,0.00022976,7]
[340758347,1729781449258,-151.0,0.00022976,7]
[340758348,1729781449271,-151.0,0.00022976,7]
[340758349,1729781449284,-329.834179,0.00022976,7]
[340758350,1729781449297,-294.956028,0.00022976,7]
[340758351,1729781449312,-329.834179,0.00022976,7]
[340758352,1729781449327,-329.834179,0.00022976,7]
[340758353,1729781449341,-329.834179,0.00022976,7]
[340758354,1729781449353,-588.795864,0.00022976,7]
[340758355,1729781449366,-588.795864,0.00022976,7]
[340758356,1729781449380,-588.795864,0.00022976,7]
[340758357,1729781449392,-588.795857,0.00022976,7]
[340758358,1729781449405,-5817.08713,0.00022976,7]
[340758359,1729781449419,-5817.087136,0.00022976,7]
[340758360,1729781449431,-636.07,0.00022977,2]
[340758361,1729781449444,-517.08726938,0.00022977,2]
[340758362,1729781449456,-500.0,0.00022977,2]
[340758363,1729781449470,-980.78,0.00022977,2]
[340758364,1729781449483,-500.0,0.00022977,2]
[340758365,1729781449496,-1329.18,0.00022977,2]
[340758366,1729781449511,-500.0,0.00022977,2]
[340758367,1729781449525,-503.273941,0.00022977,2]
[340758368,1729781449538,-500.0,0.00022977,2]
[340758369,1729781449551,-567.06,0.00022977,2]
[340758370,1729781449565,-322.61511336,0.00022977,2]
[340758371,1729781449580,-246.71972984,0.00022977,2]
[340758372,1729781449593,-500.0,0.00022977,2]
[340758373,1729781449605,-500.0,0.00022977,2]
[340758374,1729781449619,-500.0,0.00022977,2]
[340758375,1729781449631,-502.37600336,0.00022977,2]
[340758376,1729781449646,-500.0,0.00022977,2]
[340758377,1729781449662,-500.0,0.00022977,2]
[340758378,1729781449676,-500.0,0.00022977,2]
[340758379,1729781449689,-508.65,0.00022977,2]
[340758380,1729781449702,-500.0,0.00022977,2]
[340758381,1729781449715,-596.33,0.00022977,2]
[340758382,1729781449729,-500.0,0.00022977,2]
[340758383,1729781449744,-500.0,0.00022977,2]
[340758384,1729781449758,-500.0,0.00022977,2]
[340758385,1729781449772,-818.35,0.00022977,2]
[340758386,1729781449784,-500.0,0.00022977,2]
[340758387,1729781449796,-1677.94,0.00022977,2]
[340758388,1729781449809,-773.13,0.00022977,2]
[340758389,1729781449823,-773.13,0.00022977,2]
[340758390,1729781449837,-500.0,0.00022977,2]
[340758391,1729781449851,-1329.82,0.00022977,2]
[340758392,1729781449864,-520.96950543,0.00022977,2]
[340758393,1729781449877,-500.0,0.00022977,2]
[340758394,1729781449890,-239.239483,0.00022977,7]
[340758395,1729781449902,-500.0,0.00022977,2]
[340758396,1729781449914,-239.239483,0.00022977,7]
[340758397,1729781449927,-482.50927998,0.00022977,2]
[340758398,1729781449940,-500.0,0.00022977,2]
[340758399,1729781449953,-500.0,0.00022977,2]
[340758400,1729781449966,-515.23331611,0.00022977,2]
[340758401,1729781449980,-807.23,0.00022977,2]
[340758402,1729781449992,-1865.01,0.00022977,2]
[340758403,1729781450008,-529.74981953,0.00022977,2]
[340758404,1729781450021,-523.1204789,0.00022977,2]
[340758405,1729781450033,-604.15452815,0.00022977,2]
[340758406,1729781450044,-1203.58,0.00022977,2]
[340758407,1729781450053,-500.0,0.00022977,2]
[340758408,1729781450062,-492.4174338,0.00022977,2]
[340758409,1729781450071,-610.95629036,0.00022977,2]
[340758410,1729781450080,-500.0,0.00022977,2]
[340758411,1729781450090,-1011.13,0.00022977,2]
[340758412,1729781450100,-982.12,0.00022977,2]
[340758413,1729781450111,-865.54,0.00022977,2]
[340758414,1729781450120,-155.041782,0.00022977,7]
[340758415,1729781450131,-151.0,0.00022977,7]
[340758416,1729781450141,-151.0,0.00022977,7]
[340758417,1729781450151,-151.0,0.00022977,7]
[340758418,1729781450160,-500.0,0.00022977,2]
[340758419,1729781450170,-505.65192931,0.00022977,2]
[340758420,1729781450181,-151.0,0.00022977,7]
[340758421,1729781450192,-151.0,0.00022977,7]
[340758422,1729781450202,-164.63788,0.00022977,7]
[340758423,1729781450212,-1098.45,0.00022977,2]
[340758424,1729781450222,-571.55413196,0.00022977,2]
[340758425,1729781450231,-500.0,0.00022977,2]
[340758426,1729781450242,-500.0,0.00022977,2]
[340758427,1729781450255,-500.0,0.00022977,2]
[340758428,1729781450266,-500.0,0.00022977,2]
[340758429,1729781450276,-500.0,0.00022977,2]
[340758430,1729781450286,-500.0,0.00022977,2]
[340758431,1729781450295,-500.0,0.00022977,2]
[340758432,1729781450306,-313.42792693,0.00022977,2]
[340758433,1729781450317,-278.676603,0.00022977,7]
[340758434,1729781450328,-278.676603,0.00022977,7]
[340758435,1729781450339,-278.676603,0.00022977,7]
[340758436,1729781450350,-278.676603,0.00022977,7]
[340758437,1729781450360,-278.676603,0.00022977,7]
[340758438,1729781450370,-278.676603,0.00022977,7]
[340758439,1729781450380,-500.0,0.00022977,2]
[340758440,1729781450391,-976.91,0.00022977,2]
[340758441,1729781450400,-500.0,0.00022977,2]
[340758442,1729781450410,-151.0,0.00022977,7]
[340758443,1729781450421,-151.0,0.00022977,7]
[340758444,1729781450719,-151.0,0.00022977,7]
[340758445,1729781450740,-151.0,0.00022977,7]
[340758446,1729781450757,-151.0,0.00022977,7]
[340758447,1729781450769,-184.534123,0.00022977,7]
[340758448,1729781450779,-151.0,0.00022977,7]
[340758449,1729781450788,-151.0,0.00022977,7]
[340758450,1729781450798,-151.0,0.00022977,7]
[340758451,1729781450809,-151.0,0.00022977,7]
[340758452,1729781450818,-500.0,0.00022977,2]
[340758453,1729781450829,-500.0,0.00022977,2]
[340758454,1729781450838,-176.308721,0.00022977,7]
[340758455,1729781450848,-151.0,0.00022977,7]
[340758456,1729781450859,-151.0,0.00022977,7]
[340758457,1729781450869,-151.0,0.00022977,7]
[340758458,1729781450879,-151.0,0.00022977,7]
[340758459,1729781450889,-151.0,0.00022977,7]
[340758460,1729781450898,-500.0,0.00022977,2]
[340758461,1729781450907,-500.0,0.00022977,2]
[340758462,1729781450918,-500.0,0.00022977,2]
[340758463,1729781450928,-500.0,0.00022977,2]
[340758464,1729781450938,-502.84180182,0.00022977,2]
[340758465,1729781450948,-500.0,0.00022977,2]
[340758466,1729781450958,-298.3557352,0.00022977,2]
[340758467,1729781450967,-955.74,0.00022977,2]
[340758468,1729781450977,-500.0,0.00022977,2]
[340758469,1729781450987,-500.0,0.00022977,2]
[340758470,1729781450997,-500.0,0.00022977,2]
[340758471,1729781451008,-2051.11,0.00022977,2]
[340758472,1729781451018,-503.29630223,0.00022977,2]
[340758473,1729781451028,-500.0,0.00022977,2]
[340758474,1729781451037,-500.0,0.00022977,2]
[340758475,1729781451047,-1044.459128,0.00022977,7]
[340758476,1729781451056,-1044.459128,0.00022977,7]
[340758477,1729781451066,-1044.459128,0.00022977,7]
[340758478,1729781451077,-1044.459128,0.00022977,7]
[340758479,1729781451086,-500.0,0.00022977,2]
[340758480,1729781451096,-1044.459128,0.00022977,7]
[340758481,1729781451106,-1044.459128,0.00022977,7]
[340758482,1729781451116,-1324.15,0.00022977,2]
[340758483,1729781451126,-500.0,0.00022977,2]
[340758484,1729781451135,-515.19558771,0.00022977,2]
[340758485,1729781451145,-859.25,0.00022977,2]
[340758486,1729781451154,-500.0,0.00022977,2]
[340758487,1729781451165,-500.0,0.00022977,2]
[340758488,1729781451175,-1025.41,0.00022977,2]
[340758489,1729781451184,-500.0,0.00022977,2]
[340758490,1729781451194,-500.0,0.00022977,2]
[340758491,1729781451204,-500.0,0.00022977,2]
[340758492,1729781451213,-500.0,0.00022977,2]
[340758493,1729781451223,-500.0,0.00022977,2]
[340758494,1729781451233,-2056.88,0.00022977,2]
[340758495,1729781451242,-1683.74,0.00022977,2]
[340758496,1729781451252,-500.0,0.00022977,2]
[340758497,1729781451263,-500.0,0.00022977,2]
[340758498,1729781451273,-2075.06,0.00022977,2]
[340758499,1729781451282,-1493.41,0.00022977,2]
[340758500,1729781451292,-539.59529245,0.00022977,2]
[340758501,1729781451301,-906.84,0.00022977,2]
[340758502,1729781451311,-500.0,0.00022977,2]
[340758503,1729781451320,-683.71,0.00022977,2]
[340758504,1729781451330,-500.0,0.00022977,2]
[340758505,1729781451340,-502.78135282,0.00022977,2]
[340758506,1729781451350,-1207.51,0.00022977,2]
[340758507,1729781451360,-500.0,0.00022977,2]
[340758508,1729781451370,-505.94596203,0.00022977,2]
[340758509,1729781451379,-1563.99,0.00022977,2]
[340758510,1729781451389,-696.4,0.00022977,2]
[340758511,1729781451398,-500.0,0.00022977,2]
[340758512,1729781451408,-569.12601138,0.00022977,2]
[340758513,1729781451417,-777.31,0.00022977,2]
[340758514,1729781451427,-500.0,0.00022977,2]
[340758515,1729781451437,-500.69320675,0.00022977,2]
[340758516,1729781451447,-500.0,0.00022977,2]
[340758517,1729781451456,-500.0,0.00022977,2]
[340758518,1729781451466,-501.09513532,0.00022977,2]
[340758519,1729781451477,-500.0,0.00022977,2]
[340758520,1729781451487,-506.06199428,0.00022977,2]
[340758521,1729781451497,-243.68357232,0.00022977,2]
[340758522,1729781451506,-516.89802571,0.00022977,2]
[340758523,1729781451516,-500.0,0.00022977,2]
[340758524,1729781451526,-806.01,0.00022977,2]
[340758525,1729781451535,-503.80402213,0.00022977,2]
[340758526,1729781451546,-500.0,0.00022977,2]
[340758527,1729781451556,-1050.02,0.00022977,2]
[340758528,1729781451565,-500.0,0.00022977,2]
[340758529,1729781451575,-543.24162925,0.00022977,2]
[340758530,1729781451585,-500.0,0.00022977,2]
[340758531,1729781451595,-500.0,0.00022977,2]
[340758532,1729781451604,-581.5,0.00022977,2]
[340758533,1729781451614,-500.0,0.00022977,2]
[340758534,1729781451623,-500.0,0.00022977,2]
[340758535,1729781451633,-500.0,0.00022977,2]
[340758536,1729781451643,-782.82,0.00022977,2]